Cogmind - Beta 17.1 @@@ ROGUE MODE // 2026.09.20 @ 02:57:38 Player: robotdolboeb Result: Self-destructed Performance ------------- Evolutions (3) 1500 Regions Visited (5) 1000 Robots Destroyed (97) 485 Value Destroyed (2834) 2834 Prototype IDs (11) 220 Alien Tech Used (0) 0 Bonus (0) 0 TOTAL SCORE: 6039 Bonus ------- None Cogmind --------- Core Integrity 561/700 Matter 177/300 Energy 265/265 System Corruption 0% Temperature Cool (0) Movement Rolling (115) Ox1 Location -7/Factory Parts ------- > --- POWER (2) -------- Improved Ion Engine > --- PROPULSION (2) --- Armored Huge Wheel > --- UTILITY (5) ------ Large Storage Unit Improved Sensor Array Improved Propulsion Shielding Hacking Suite Hacking Suite > --- WEAPON (4) ------- Advanced Beam Rifle Heavy Laser > --- INVENTORY (15) --- Armored Huge Wheel Cooling System Improved Propulsion Shielding Improved Utility Shielding Corruption Screen Drone Bay (2/2) Guided Missile Launcher Powered Hammer Peak State ------------ > --- POWER ------------ Improved Ion Engine Light Angular Momentum Engine > --- PROPULSION ------- Armored Huge Wheel > --- UTILITY ---------- Cooling System Large Storage Unit Improved Sensor Array Hacking Suite Hacking Suite > --- WEAPON ----------- Advanced Beam Rifle Advanced Beam Rifle Advanced Beam Rifle Heavy Laser > --- INVENTORY -------- Improved Ion Engine Light Nuclear Core Armored Huge Wheel Armored Huge Wheel Improved Propulsion Shielding Improved Propulsion Shielding Improved Utility Shielding Corruption Screen Drone Bay Advanced Assault Cannon Guided Missile Launcher [Rating: 48] Favorites ----------- Power Heavy Ion Engine Engine Heavy Ion Engine Power Core Nuclear Core Propulsion Light Treads Treads Light Treads Leg Aluminum Leg Wheel Armored Huge Wheel Utility Hacking Suite Device Cooling System Storage Medium Storage Unit Processor Targeting Computer Hackware Hacking Suite Protection Reflective Plating Weapon Assault Cannon Energy Gun Advanced Beam Rifle Energy Cannon Advanced Beam Cannon Ballistic Gun Gauss Rifle Ballistic Cannon Assault Cannon Launcher Guided Missile Launcher Special Weapon Mining Laser Build | -11 -10 -9 -8 -8 -7 ------- Run | Yrd Mat Mat Mat Sto Fac Slots Evolved 6 | . . 2 2 . 2 Power 1 | . . . 1 . . Propulsion . | . . . . . . Utility 3 | . . 1 1 . 1 Weapon 2 | . . 1 . . 1 Parts Attached 68 | 6 4 24 23 7 4 Power 12 | 1 1 3 3 2 2 Engine 8 | 1 1 2 1 2 1 Core 4 | . . 1 2 . 1 Reactor . | . . . . . . Propulsion 17 | 2 . 6 8 . 1 Treads 10 | . . 5 5 . . Leg 5 | 2 . 1 2 . . Wheel 2 | . . . 1 . 1 Hover . | . . . . . . Flight . | . . . . . . Utility 17 | 1 1 6 8 1 . Device 7 | . 1 2 4 . . Storage 3 | 1 . 1 1 . . Processor 1 | . . 1 . . . Hackware 3 | . . 2 . 1 . Protection 3 | . . . 3 . . Artifact . | . . . . . . Weapon 22 | 2 2 9 4 4 1 Energy Gun 7 | . . 2 2 3 . Energy Cannon 2 | . . 2 . . . Ballistic Gun 5 | 2 1 1 1 . . Ballistic Cannon 6 | . . 4 1 . 1 Launcher 1 | . . . . 1 . Special Weapon 1 | . 1 . . . . Impact Weapon . | . . . . . . Slashing Weapon . | . . . . . . Piercing Weapon . | . . . . . . Special Melee Weapon . | . . . . . . Unidentified Prototypes 7 | . . 4 2 1 . Parts Lost 23 | . . 4 10 2 7 Power 7 | . . 1 2 1 3 Propulsion 2 | . . 1 . . 1 Utility 4 | . . . 3 1 . Weapon 10 | . . 2 5 . 3 Highest Loss Streak 6 | . . 1 3 1 6 To Critical Strikes . | . . . . . . Average Backups 9 | 2 6 9 9 12 10 Power . | . 1 1 . 1 1 Propulsion 1 | . 2 1 1 2 1 Utility 5 | . . 5 5 6 5 Weapon 1 | 1 2 1 2 2 2 Tool/Special . | . . . . . . Unused Backups 18 | . . 5 7 1 5 Power 2 | . . 1 . 1 . Propulsion 3 | . . . 2 . 1 Utility 9 | . . 4 2 . 3 Weapon 4 | . . . 3 . 1 Tool/Special . | . . . . . . Average Slot Usage (%) 94 | . 96 99 90 87 87 Engine 8 | . 14 5 5 17 12 Core 4 | . . 5 7 . . Treads 11 | . . 19 10 . . Leg 3 | . 28 2 1 . . Wheel 2 | . . . 2 9 7 Device 7 | . 10 2 10 11 12 Storage 10 | . 14 11 9 9 7 Processor 5 | . . 10 3 . . Hackware 9 | . . 8 9 14 15 Protection 1 | . . . 3 . 1 Energy Gun 5 | . . 1 2 22 23 Ballistic Gun 4 | . 25 2 3 1 . Ballistic Cannon 18 | . . 27 19 1 4 Peak Build Rating 48 | 6 7 22 36 41 48 Average Rating 25 | 3 6 18 28 38 45 On Entrance 18 | . 6 7 21 36 41 Avg Prop Armor Cover (%) 11 | . . . 11 . . Naked Turns . | . . . . . . Heaviest Build 51 | 11 12 34 48 48 51 Greatest Support 44 | 20 20 40 44 28 28 Greatest Overweight (x) 12 | . . 2 12 1 1 Average Overweight (x) . | . . . . 1 1 Largest Inventory Capacity 15 | 8 8 10 15 15 15 Average Capacity 11 | 7 8 9 11 15 15 Most Carried 15 | 5 8 10 15 15 15 Average Carried 10 | 2 6 9 10 14 13 Final Capacity 15 | 8 8 10 15 15 15 Final Carried 15 | 4 8 10 14 15 10 Class Distribution -------------------- 51% | Gunner 12% | Skirmisher 9% | Hacker-Skirmisher 8% | Mutant 5% | Tank 3% | Hacker-Gunner 3% | Scavenger-Skirmisher Dominant Class ---------------- Mutant | -10/Materials Gunner | -9/Materials Gunner | -8/Materials Hacker-Skirmisher | -8/Storage Hacker-Skirmisher | -7/Factory Resources | -11 -10 -9 -8 -8 -7 ----------- Run | Yrd Mat Mat Mat Sto Fac Matter Collected 2650 | 222 83 937 1266 142 . Remotely . | . . . . . . Salvage Created 3314 | . 94 1004 1441 592 183 Parts 183 | . 10 66 80 23 4 Haulers Intercepted 1 | . . . 1 . . Recyclers Shooed 1 | . . . 1 . . Parts Field Recycled . | . . . . . . Retrieved Matter . | . . . . . . Parts Self-Destructed . | . . . . . . Prevented . | . . . . . . Parts Restored . | . . . . . . Kills | -11 -10 -9 -8 -8 -7 ------- Run | Yrd Mat Mat Mat Sto Fac Combat Hostiles Destroyed 69 | . 6 24 25 10 4 Guns 28 | . 6 4 5 10 3 Cannons 39 | . . 18 20 . 1 AOE 1 | . . 1 . . . Classes Destroyed 13 | . 1 7 5 . . Worker 8 | . . 2 5 1 . Builder 3 | . . . 3 . . Tunneler 1 | . . . 1 . . Hauler 1 | . . . 1 . . Recycler 7 | . . 1 5 1 . Operator 2 | . . 2 . . . Watcher 6 | . . 4 2 . . Swarmer 14 | . 6 . 5 3 . Grunt 34 | . . 15 13 3 3 Brawler 1 | . . . 1 . . Duelist 2 | . . 2 . . . Sentry 17 | . . 7 5 4 1 Hunter 1 | . . . 1 . . Best Kill Streak 10 | . 3 5 10 4 2 Combat Bots Only 4 | . 3 4 3 3 2 Max Kills in Single Turn 2 | . 1 2 2 1 1 Gunslinging . | . . . . . . Exploded 1 | . . 1 . . . Melee . | . . . . . . Uniques/NPCs Destroyed . | . . . . . . Combat | -11 -10 -9 -8 -8 -7 -------- Run | Yrd Mat Mat Mat Sto Fac Hostile Shots Fired 509 | . 40 52 172 38 207 Missed 166 | . 5 18 59 7 77 Hits 343 | . 35 34 113 31 130 Melee 2 | . . 2 . . . Projectile 341 | . 35 32 113 31 130 Critical Strikes 9 | . . 2 4 3 . Damage Taken 4035 | . 285 658 1620 429 1043 Core 634 | . 34 92 296 73 139 Absorbed by Shields . | . . . . . . Redirected to Shielding 107 | . . . 18 . 89 Ignored by Resistances 80 | . . . 80 . . Core Remaining (%) 73 | 100 86 77 . 32 . Volleys Fired 188 | . 19 47 82 24 16 Largest 4 | . 2 3 3 3 4 Hottest 231 | . 100 125 155 191 231 Shots Fired 539 | . 37 141 232 72 57 Gun 225 | . 36 21 52 72 44 Cannon 313 | . . 120 180 . 13 Launcher . | . . . . . . Special 1 | . 1 . . . . Kinetic 356 | . 36 121 185 1 13 Thermal 146 | . 1 7 23 71 44 Explosive . | . . . . . . Electromagnetic 37 | . . 13 24 . . Robot Hit Streak 15 | . 9 11 15 11 8 Robot Miss Streak 6 | . 4 6 6 4 2 Penetration Max 1 | . . . 1 . . Secondary Targets 3 | . 3 . . . . Max Gunslinging Chain 1 | . 1 . . . . Shots Hit Robots 290 | . 22 74 118 37 39 Core Hits 145 | . 7 46 62 18 12 Critical Kills 1 | . . 1 . . . Critical Parts Destroyed . | . . . . . . Critical Strikes 21 | . . 9 6 4 2 Burn 6 | . . . . 4 2 Meltdown 1 | . . 1 . . . Blast 14 | . . 8 6 . . Melee Attacks . | . . . . . . Impact . | . . . . . . Slashing . | . . . . . . Piercing . | . . . . . . Sneak Attacks . | . . . . . . Combat Hostiles . | . . . . . . Follow-up Attacks . | . . . . . . Damage Inflicted 6892 | . 240 1825 3180 791 856 Guns 2477 | . 240 196 634 791 616 Cannons 4248 | . . 1535 2473 . 240 Explosions 167 | . . 94 73 . . Melee . | . . . . . . Ramming . | . . . . . . Kinetic 4444 | . 240 1480 2464 20 240 Thermal 1966 | . . 181 398 771 616 Explosive . | . . . . . . Electromagnetic 482 | . . 164 318 . . Impact . | . . . . . . Slashing . | . . . . . . Piercing . | . . . . . . Highest Corruption 2 | . . . . 2 . Average Corruption 2 | . . . . 2 . Corruption Purged . | . . . . . . Corruption Blocked . | . . . . . . Effects 2 | . . . . 2 . Heat Flow Errors 1 | . . . . 1 . Data Loss (minor) 1 | . . . . 1 . Overload Shots . | . . . . . . Overflow Damage 46 | . . . 46 . . Projectiles 27 | . . . 27 . . Explosions 19 | . . . 19 . . Melee . | . . . . . . Knockbacks 25 | . . 6 17 . 2 Impact . | . . . . . . Kinetic 23 | . . 5 16 . 2 Secondary 2 | . . 1 1 . . Self-Inflicted Damage 74 | . . . 74 . . Shots 2 | . . . 2 . . Rammed . | . . . . . . Targets Rammed . | . . . . . . Kicked . | . . . . . . Crushed . | . . . . . . Highest Temperature 533 | . 20 343 533 371 457 Average Temperature 131 | . 10 84 138 139 202 Received Heat Transfer 1407 | . . 201 675 207 324 Effects 16 | . . . 10 1 5 Shutdowns 7 | . . . 4 1 2 Energy Bleed 2 | . . . 1 . 1 Matter Decay 1 | . . . 1 . . Short Circuit 4 | . . . 2 . 2 Damage (minor) 1 | . . . 1 . . Damage (core) 1 | . . . 1 . . Siege Activations . | . . . . . . Martial Activations . | . . . . . . Shielding Activations . | . . . . . . Robots Disrupted . | . . . . . . Combat Hostiles . | . . . . . . Robots Corrupted . | . . . . . . Combat Hostiles . | . . . . . . Parts Fried . | . . . . . . Impact Corruptions . | . . . . . . Robots Melted 1 | . . 1 . . . Combat Hostiles 1 | . . 1 . . . Parts Melted 5 | . . 1 . 3 1 Heat Transferred 4011 | . . 285 692 1739 1295 Parts Sabotaged . | . . . . . . Parts Stolen . | . . . . . . Parts Stripped . | . . . . . . Power Chain Reactions 3 | . . 1 2 . . Alert | -11 -10 -9 -8 -8 -7 ------- Run | Yrd Mat Mat Mat Sto Fac Maximum Alert Level 1 | . . 1 1 1 . Low Security (%) 71 | 100 100 89 34 79 100 Level 1 28 | . . 10 65 20 . Level 2 . | . . . . . . Level 3 . | . . . . . . Level 4 . | . . . . . . Level 5 . | . . . . . . High Security . | . . . . . . Max Security . | . . . . . . Peak Influence 381 | . 70 253 381 246 104 Initial 157 | . . . 97 157 104 Average 144 | . 30 100 244 158 43 Influence Increases 2259 | . 141 795 906 315 102 Destroy 0b10 Robot/C 1380 | . 120 480 500 200 80 Destroy 0b10 Robot/NC 145 | . . 45 85 15 . Destroy Leader 354 | . 20 138 116 60 20 Successful Hack 55 | . . 36 10 9 . Disable Machine 105 | . . 30 60 15 . Destroy Structure 85 | . 1 36 45 1 2 Lose Combat Pursuer 135 | . . 30 90 15 . Influence Decreases 2259 | . 141 564 764 458 332 Entered New Map 476 | . . . 134 216 126 Time Decay 1557 | . 141 524 530 222 140 Lost Part 226 | . . 40 100 20 66 Squads Dispatched 9 | . 1 2 2 . 4 Investigation 2 | . . 1 . . 1 Extermination . | . . . . . . Reinforcement 4 | . 1 1 2 . . Assault . | . . . . . . Garrison 3 | . . . . . 3 Intercept . | . . . . . . Searches Triggered . | . . . . . . Construction Impeded 1 | . . . 1 . . Haulers Reinforced . | . . . . . . Active Scanning Responses . | . . . . . . Cargo Convoy Interrupts . | . . . . . . Stealth | -11 -10 -9 -8 -8 -7 --------- Run | Yrd Mat Mat Mat Sto Fac Distress Signals 6 | . 2 1 2 1 . Communications Jammed . | . . . . . . Distress Signals . | . . . . . . Times Spotted 100 | . 8 33 35 13 11 Peak Tracking Total 7 | . 4 4 5 4 7 Tactical Retreats 7 | . . 1 5 1 . Traps | -11 -10 -9 -8 -8 -7 ------- Run | Yrd Mat Mat Mat Sto Fac Traps Triggered 5 | . . 1 2 2 . Indirectly . | . . . . . . Trap Hack Attempts . | . . . . . . Triggered . | . . . . . . Disarmed . | . . . . . . Reprogrammed . | . . . . . . Reused . | . . . . . . Traps Extracted . | . . . . . . Installed . | . . . . . . Triggered . | . . . . . . Machines | -11 -10 -9 -8 -8 -7 ---------- Run | Yrd Mat Mat Mat Sto Fac Machines Disabled 7 | . . 2 4 1 . Max in Single Turn 2 | . . 1 2 1 . Machines Repaired . | . . . . . . Machines Dismantled . | . . . . . . Machines Sabotaged . | . . . . . . Overloaded Fab Kills . | . . . . . . Hacking | -11 -10 -9 -8 -8 -7 --------- Run | Yrd Mat Mat Mat Sto Fac Machines Accessed 22 | . 1 8 4 7 2 Terminals 19 | . 1 8 3 6 1 Fabricators . | . . . . . . Repair Stations 1 | . . . . 1 . Recycling Units . | . . . . . . Scanalyzers 1 | . . . 1 . . Garrison Access 1 | . . . . . 1 Total Hacks 46 | . 1 21 7 12 5 Successful 28 | . . 14 4 8 2 Failed 18 | . 1 7 3 4 3 Catastrophic 3 | . . 2 1 . . Database Lockouts . | . . . . . . Manual 1 | . . . . . 1 Terminals 41 | . 1 21 5 11 3 Fabricators . | . . . . . . Repair Stations 1 | . . . . 1 . Recycling Units . | . . . . . . Scanalyzers 2 | . . . 2 . . Garrison Access 2 | . . . . . 2 Terminal Hacks 26 | . . 14 2 8 2 Record 2 | . . 2 . . . Robot Analysis 3 | . . 3 . . . Prototype ID Bank 3 | . . 2 1 . . Open Door 3 | . . . . 3 . Open DSF 2 | . . . . . 2 Level Access Points 1 | . . . . 1 . Emergency Access Points 1 | . . . . 1 . Terminal Index 1 | . . 1 . . . Locate Traps 2 | . . 1 . 1 . Maintenance Status 1 | . . 1 . . . Security Status 1 | . . . 1 . . Patrol Status 1 | . . . . 1 . Reinforcement Status 1 | . . 1 . . . Recall Investigation 1 | . . 1 . . . Registered Prototypes 1 | . . 1 . . . Zone Layout 2 | . . 1 . 1 . Fabricator Hacks . | . . . . . . Repair Station Hacks . | . . . . . . Recycling Unit Hacks . | . . . . . . Scanalyzer 2 | . . . 2 . . Insert Component 1 | . . . 1 . . Analyze 1 | . . . 1 . . Garrison Access Hacks . | . . . . . . Unauthorized Hacks . | . . . . . . Terminals . | . . . . . . Fabricators . | . . . . . . Repair Stations . | . . . . . . Recycling Units . | . . . . . . Scanalyzers . | . . . . . . Garrison Access . | . . . . . . Data Cores Recovered 2 | . . 2 . . . Used 1 | . . 1 . . . Hacking Detections 10 | . . 4 3 2 1 Full Trace Events 1 | . . . . . 1 Feedback Events . | . . . . . . Feedback Blocked . | . . . . . . Robot Schematics Acquired . | . . . . . . Robots Built . | . . . . . . Authchips . | . . . . . . Time . | . . . . . . Total Robot Build Rating . | . . . . . . Part Schematics Acquired 1 | . . . 1 . . Parts Built . | . . . . . . Authchips . | . . . . . . Time . | . . . . . . Total Part Build Rating . | . . . . . . Part Studies Acquired . | . . . . . . Parts Repaired . | . . . . . . Time . | . . . . . . Parts Recycled . | . . . . . . Recycled Matter . | . . . . . . Retrieved Matter . | . . . . . . Retrieved Components . | . . . . . . Parts Scanalyzed 1 | . . . 1 . . Part Schematics Acquired 1 | . . . 1 . . Parts Damaged . | . . . . . . Bothacking | -11 -10 -9 -8 -8 -7 ------------ Run | Yrd Mat Mat Mat Sto Fac Used RIF Installer . | . . . . . . Robots Hacked . | . . . . . . Non-combat . | . . . . . . Combat . | . . . . . . Robot Hacks Applied . | . . . . . . Relay Couplers Released . | . . . . . . Fabnet Peak Effective % . | . . . . . . Robots Rewired . | . . . . . . Allies Hacked . | . . . . . . Hacks Repelled . | . . . . . . Allies | -11 -10 -9 -8 -8 -7 -------- Run | Yrd Mat Mat Mat Sto Fac Total Allies . | . . . . . . Largest Group . | . . . . . . Highest-Rated Group . | . . . . . . Highest-Rated Ally . | . . . . . . Total Orders . | . . . . . . Ally Attacks . | . . . . . . Total Damage . | . . . . . . Kills . | . . . . . . Allies Corrupted . | . . . . . . Allies Melted . | . . . . . . Intel | -11 -10 -9 -8 -8 -7 ------- Run | Yrd Mat Mat Mat Sto Fac Active Infowar (turns) 1600 | . 245 161 559 316 319 Sensors 1600 | . 245 161 559 316 319 Robot Analysis Total 3 | . . 3 . . . Derelict Logs Recovered . | . . . . . . Drone Launches . | . . . . . . Drone Recoveries . | . . . . . . Exploration | -11 -10 -9 -8 -8 -7 ------------- Run | Yrd Mat Mat Mat Sto Fac Turns Passed 4412 | 61 322 1749 1499 462 319 Spaces Moved 2428 | 41 214 958 709 305 201 Core 10 | 5 . . 5 . . Treads 1215 | . . 814 401 . . Legs 447 | 36 214 144 53 . . Wheels 756 | . . . 250 305 201 Hover . | . . . . . . Flight . | . . . . . . Fastest Speed 50 | 50 120 120 115 115 115 Average Speed 143 | 111 120 154 157 115 115 Slowest Speed 650 | 120 120 260 650 115 115 Overloaded Moves . | . . . . . . Propulsion Burnouts . | . . . . . . Robots Hopped . | . . . . . . Potential Cave-ins . | . . . . . . Cave-ins Triggered . | . . . . . . Exploration Rate (%) 33 | 3 30 62 53 48 5 Regions Visited 5 Branch Regions 1 Pre-discovered Areas . | . . . . . . Known Exits Taken 1 | . . . . 1 . Unknown Exits Taken 4 | 1 1 1 1 . . Scrap Searched . | . . . . . . Spaces Dug 1 | . 1 . . . . Terrain Destroyed 70 | . 1 30 38 . 1 Melee . | . . . . . . Projectile 61 | . 1 26 33 . 1 AOE 9 | . . 4 5 . . Terrain Rammed . | . . . . . . Walls Destroyed . | . . . . . . Machines Disabled . | . . . . . . Actions | -11 -10 -9 -8 -8 -7 --------- Run | Yrd Mat Mat Mat Sto Fac Total 2961 | 56 243 1134 918 361 249 Wait 96 | . . 33 37 4 22 Move 2423 | 40 213 957 708 304 201 Hop . | . . . . . . Pick Up 89 | 10 6 33 31 7 2 Fast Attach 12 | . . 2 6 4 . Attach 50 | 6 1 15 17 5 6 Detach 4 | . . 1 2 1 . Swap 38 | . 3 14 14 5 2 Drop 61 | . 1 32 21 7 . Fire 188 | . 19 47 82 24 16 Melee . | . . . . . . Ram . | . . . . . . Kick . | . . . . . . Crush . | . . . . . . Escape Stasis . | . . . . . . Rewire . | . . . . . . Trap . | . . . . . . Miscellaneous . | . . . . . . Route ------- -11/Scrapyard -10/Materials (discovered 2 exits: *Mat / [*Min]) -9/Materials (discovered 2 exits: *Mat / [*Min]) -8/Materials (discovered 2 exits: *Fac / *Sto) -8/Storage -7/Factory History --------- Turn | Location | Event 4 | -11/Scrapyard | Discovered new exit (range 15) 62 | -11/Scrapyard | Entered Materials 248 | -10/Materials | Discovered new exit (range 7) 309 | -10/Materials | Build established: Mutant 340 | -10/Materials | Discovered new exit (range 5) 384 | -10/Materials | Entered another Materials area 384 | -9/Materials | Evolved 2 slots: Utility x1, Weapon x1 697 | -9/Materials | Build established: Gunner 1167 | -9/Materials | Discovered new exit (range 16) 1578 | -9/Materials | Discovered new exit (range 8) 2133 | -9/Materials | Entered another Materials area 2133 | -8/Materials | Evolved 2 slots: Power x1, Utility x1 2822 | -8/Materials | Discovered new exit (range 16) 2833 | -8/Materials | Lost 3 parts (1p1u1w) 3021 | -8/Materials | Lost 3 parts (1p1u1w) 3037 | -8/Materials | Core integrity fell below 50% 3522 | -8/Materials | Build established: Skirmisher 3621 | -8/Materials | Discovered new exit (range 8) 3632 | -8/Materials | Entered Storage 3736 | -8/Storage | Found Prototype Launcher 3737 | -8/Storage | Identified Gui. Missile Launcher 4076 | -8/Storage | Identified exit to Factory 4094 | -8/Storage | Entered Factory 4094 | -7/Factory | Evolved 2 slots: Utility x1, Weapon x1 4229 | -7/Factory | Identified exit to DSF 4413 | -7/Factory | Self-destructed Last Messages --------------- Y-54 Guardian heat damages Flak Gun. G-47 Trooper destroyed. Y-54 Guardian suffers critical hit (Burn). Adv. Beam Rifle destroyed. Arm. Huge Wheel destroyed. Lgt. Angular Momentum Engine destroyed. Y-54 Guardian destroyed. Adv. Beam Rifle destroyed. Power failure, Imp. Ion Engine shutdown. Power failure, Lgt. Nuclear Core shutdown. Adv. Assault Cannon broken. Overheating: Short circuit. Lgt. Nuclear Core destroyed. Melted Imp. Light Armor Plating. Overheating: Energy bleed (-22). Y-54 Guardian heat short circuits Imp. Heat Sink. Y-54 Guardian suffers critical hit (Burn). Broken Adv. Assault Cannon destroyed. Connecting with DSF Access... Map ----- +----------------------------------------------------+ | ?????????????????????????????????????????????????? | | ?????????????????????????????????????????????????? | | ?????????????????????????????????????????????????? | | ?????????????????????????????????????????????????? | | ?????????????????????????????????????????????????? | | ?????????????????????????????????????????????????? | | ?????????????????????????????????????????????????? | | ?????????????????????????????????????????????????? | | ?????????????????????????????????????????????????? | | ?????????????????????????????????????????????????? | | ??????????????????????? ?????????????????????????? | | ?????????????????????? ?????????????????????????? | | ?????????????????????? ????????????????????????? | | ?????????????????????? ????????????????????????? | | ?????????????????????? ????????????????????????? | | ??????????????????????? ????????????????????????? | | ??????????????????????? ????????????????????????? | | ??????????????????????? ????????????????????????? | | ??????????????????????? ????????????????????????? | | ????#???????????????####t####????????????????????? | | ### #???????######### #????????????????????? | | #?????? ############???????### | | #?????? s ?????? | | #????? s ??????? | | #????? ????????????? | | #????? @ #?????????????????#### | | #??? #?????????????????# | | #??? ##????????????????# "" | | #??# T#????????????????# "" | | #??# #????????????????# "" | | #### ##????????????????# | | #?????????????????# [ | | ################### | | / | | ##################### | | ##########+#####?????????????????#### | | #????# ! #????????????????????? | | #????# #????????????????????? | | #????# """" #????????????????????? | | #????# """" #????????????????????? | | #????# """" #????????????????????? | | ###### """" #????????????????????? | | ### + #????????????????????? | | ??################# #????????????????????? | | ??????????????????###########????????????????????? | | ?????????????????????????????????????????????????? | | ?????????????????????????????????????????????????? | | | | | | | +----------------------------------------------------+ Best States ------------- Heat Dissipation 56 Energy Generation 25 Energy Capacity 445 Matter Stores 300 Matter Capacity 300 Sight Range 16 Robot Scan Range 15 Terrain Scan Density 10 Armor Coverage 150 Resistance: TH 10 Propulsion Shielding 66 Utility Shielding 66 Evasion (%) 55 Targeting Accuracy 5 Recoil Reduction 2 Particle Charging 15 Offensive Hacking 20 Item Schematics ----------------- Flak Cannon | -8/Materials | Scanalyzed Robot Schematics ------------------ None Fabricated ------------ Nothing Repaired ---------- Nothing Studied --------- None Alien Tech Used ----------------- None Achievements -------------- Armchair Analyst Challenges ------------ None Game ------ Seed SubatomicSkeletonStorm Manual? 0 Play Time 01:17:04 Cumulative 12.2 hours Start 2026.09.20 @ 00:11:52 End 2026.09.20 @ 02:57:38 Sessions 3 Manual Loads 0 Difficulty Rogue Special Mode None Game No. 9 Rogue 9 Adventurer 0 Explorer 0 Win Type - Total 0 Types 0/0/0/0/0/0/0/0/0/0 Lore% 2 Gallery% 13 Achievement% 12 Wizard Run 0 Options --------- Layout 1 ASCII 0 Keyboard 0 Movement Mouse Keybinds 0 Fullscreen 1 Font 32/SmallcapsGlow Map View 50x35 Zoom Use 0% Tactical HUD 0 Map Filters NONE Filters NONE Steam 1 RUN: b7c444bb-ad72-4abf-98ba-44bc402fef2f